fUST/lending_fUST_20240424
["ID","MTS","AMOUNT","RATE_DAILY","PERIOD"]
[323334086,1713903056793,-500.0,0.0002,2]
[323334087,1713903056802,-500.0,0.0002,2]
[323334088,1713903056811,-1230.65,0.0002,2]
[323334089,1713903056819,-501.693123,0.0002,2]
[323334090,1713903056829,-501.693123,0.0002,2]
[323334091,1713903056839,-501.693123,0.0002,2]
[323334092,1713903056848,-908.18,0.0002,2]
[323334093,1713903056858,-500.0,0.0002,2]
[323334094,1713903056867,-500.0,0.0002,2]
[323334095,1713903056876,-501.693123,0.0002,2]
[323334096,1713903056886,-501.693123,0.0002,2]
[323334097,1713903056895,-501.693123,0.0002,2]
[323334098,1713903056905,-151.0,0.0002,2]
[323334099,1713903056914,-151.0,0.0002,2]
[323334100,1713903056923,-151.0,0.0002,2]
[323334101,1713903056933,-500.0,0.0002,2]
[323334102,1713903056942,-153.562624,0.0002,2]
[323334103,1713903056952,-898.37,0.0002,2]
[323334104,1713903056961,-1102.27,0.0002,2]
[323334105,1713903056971,-1046.8,0.0002,2]
[323334106,1713903056983,-500.0,0.0002,2]
[323334107,1713903056992,-500.0,0.0002,2]
[323334108,1713903057002,-500.0,0.0002,2]
[323334109,1713903057011,-500.0,0.0002,2]
[323334110,1713903057021,-1358.76,0.0002,2]
[323334111,1713903057030,-928.75,0.0002,2]
[323334112,1713903057039,-500.0,0.0002,2]
[323334113,1713903057048,-500.0,0.0002,2]
[323334114,1713903057058,-500.0,0.0002,2]
[323334115,1713903057067,-500.0,0.0002,2]
[323334116,1713903057077,-670.19,0.0002,2]
[323334117,1713903057086,-500.0,0.0002,2]
[323334118,1713903057096,-203.583665,0.0002,2]
[323334119,1713903057107,-500.0,0.0002,2]
[323334120,1713903057118,-1046.91,0.0002,2]
[323334121,1713903057127,-561.05,0.0002,2]
[323334122,1713903057136,-500.0,0.0002,2]
[323334123,1713903057146,-500.0,0.0002,2]
[323334124,1713903057155,-177.75,0.0002,2]
[323334125,1713903057164,-500.0,0.0002,2]
[323334126,1713903057174,-500.0,0.0002,2]
[323334127,1713903057183,-565.92825141,0.0002,2]
[323334128,1713903057193,-500.0,0.0002,2]
[323334129,1713903057202,-779.92,0.0002,2]
[323334130,1713903057212,-1609.44,0.0002,2]
[323334131,1713903057221,-872.16,0.0002,2]
[323334132,1713903057231,-500.0,0.0002,2]
[323334133,1713903057241,-304.88183278,0.0002,2]
[323334134,1713903057250,-500.0,0.0002,2]
[323334135,1713903057259,-551.7,0.0002,2]
[323334136,1713903057269,-500.0,0.0002,2]
[323334137,1713903057278,-500.0,0.0002,2]
[323334138,1713903057288,-500.0,0.0002,2]
[323334139,1713903057297,-500.0,0.0002,2]
[323334140,1713903057306,-353.22339509,0.0002,2]
[323334141,1713903057315,-500.0,0.0002,2]
[323334142,1713903057324,-500.0,0.0002,2]
[323334143,1713903057333,-602.35,0.0002,2]
[323334144,1713903057342,-960.05,0.0002,2]
[323334145,1713903057352,-500.0,0.0002,2]
[323334146,1713903057361,-3306.34,0.0002,2]
[323334147,1713903057370,-500.0,0.0002,2]
[323334148,1713903057380,-500.0,0.0002,2]
[323334149,1713903057389,-500.0,0.0002,2]
[323334150,1713903057399,-787.018249,0.0002,2]
[323334151,1713903057408,-787.018249,0.0002,2]
[323334152,1713903057418,-500.0,0.0002,2]
[323334153,1713903057427,-770.49,0.0002,2]
[323334154,1713903057436,-1506.91,0.0002,2]
[323334155,1713903057445,-864.47,0.0002,2]
[323334156,1713903057454,-1108.17,0.0002,2]
[323334157,1713903057464,-500.0,0.0002,2]
[323334158,1713903057473,-500.0,0.0002,2]
[323334159,1713903057482,-2412.6,0.0002,2]
[323334160,1713903057492,-1562.28,0.0002,2]
[323334161,1713903057501,-192.747871,0.0002,2]
[323334162,1713903057510,-192.747871,0.0002,2]
[323334163,1713903057520,-578.18,0.0002,2]
[323334164,1713903057529,-192.747871,0.0002,2]
[323334165,1713903057538,-192.747871,0.0002,2]
[323334166,1713903057548,-192.747871,0.0002,2]
[323334167,1713903057557,-192.747871,0.0002,2]
[323334168,1713903057566,-500.0,0.0002,2]
[323334169,1713903057575,-500.0,0.0002,2]
[323334170,1713903057584,-500.0,0.0002,2]
[323334171,1713903057593,-206.449174,0.0002,2]
[323334172,1713903057603,-982.81,0.0002,2]
[323334173,1713903057612,-735.84,0.0002,2]
[323334174,1713903057621,-2227.36,0.0002,2]
[323334175,1713903057630,-1054.07,0.0002,2]
[323334176,1713903057640,-1835.9,0.0002,2]
[323334177,1713903057649,-1881.45,0.0002,2]
[323334178,1713903057658,-500.0,0.0002,2]
[323334179,1713903057668,-727.37,0.0002,2]
[323334180,1713903057677,-500.0,0.0002,2]
[323334181,1713903057686,-500.0,0.0002,2]
[323334182,1713903057696,-500.0,0.0002,2]
[323334183,1713903057705,-500.0,0.0002,2]
[323334184,1713903057714,-500.0,0.0002,2]
[323334185,1713903057723,-500.0,0.0002,2]
[323334186,1713903057732,-579.55,0.0002,2]
[323334187,1713903057742,-1701.25,0.0002,2]
[323334188,1713903057751,-1322.53,0.0002,2]
[323334189,1713903057760,-992.14,0.0002,2]
[323334190,1713903057769,-500.0,0.0002,2]
[323334191,1713903057778,-500.0,0.0002,2]
[323334192,1713903057787,-500.0,0.0002,2]
[323334193,1713903057796,-871.49,0.0002,2]
[323334194,1713903057806,-500.0,0.0002,2]
[323334195,1713903057815,-281.31251,0.0002,2]
[323334196,1713903057825,-500.0,0.0002,2]
[323334197,1713903057834,-282.712188,0.0002,2]
[323334198,1713903057843,-500.0,0.0002,2]
[323334199,1713903057853,-2971.192724,0.0002,2]
[323334200,1713903057862,-282.712188,0.0002,2]
[323334201,1713903057871,-2971.192724,0.0002,2]
[323334202,1713903057881,-282.712188,0.0002,2]
[323334203,1713903057890,-500.0,0.0002,2]
[323334204,1713903057900,-2971.192724,0.0002,2]
[323334205,1713903057909,-2971.192724,0.0002,2]
[323334206,1713903057918,-282.712188,0.0002,2]
[323334207,1713903057927,-282.712188,0.0002,2]
[323334208,1713903057937,-282.712188,0.0002,2]
[323334209,1713903057946,-2971.192724,0.0002,2]
[323334210,1713903057956,-2971.192724,0.0002,2]
[323334211,1713903057966,-2971.192724,0.0002,2]
[323334212,1713903057979,-2971.192724,0.0002,2]
[323334213,1713903057989,-728.0,0.0002,2]
[323334214,1713903057998,-500.0,0.0002,2]
[323334215,1713903058007,-1478.64,0.0002,2]
[323334216,1713903058017,-4685.320721,0.0002,2]
[323334217,1713903058026,-4685.320721,0.0002,2]
[323334218,1713903058035,-4685.320721,0.0002,2]
[323334219,1713903058044,-4685.320721,0.0002,2]
[323334220,1713903058054,-500.0,0.0002,2]
[323334221,1713903058064,-4685.320721,0.0002,2]
[323334222,1713903058073,-4685.320721,0.0002,2]
[323334223,1713903058082,-556.77,0.0002,2]
[323334224,1713903058091,-4685.320721,0.0002,2]
[323334225,1713903058100,-4685.320716,0.0002,2]
[323334226,1713903058111,-500.0,0.0002,2]
[323334227,1713903058120,-1145.16,0.0002,2]
[323334228,1713903058129,-500.0,0.0002,2]
[323334229,1713903058138,-1530.09,0.0002,2]
[323334230,1713903058147,-500.0,0.0002,2]
[323334231,1713903058156,-518.61205416,0.0002,2]
[323334232,1713903058166,-284.0,0.0002,2]
[323334233,1713903058279,-284.0,0.0002,2]
[323334234,1713903058290,-500.0,0.0002,2]
[323334235,1713903058299,-500.0,0.0002,2]
[323334236,1713903058308,-500.0,0.0002,2]
[323334237,1713903058318,-1259.3,0.0002,2]
[323334238,1713903058327,-500.0,0.0002,2]
[323334239,1713903058337,-2000.0,0.0002,2]
[323334240,1713903058346,-2000.0,0.0002,2]
[323334241,1713903058356,-2000.0,0.0002,2]
[323334242,1713903058366,-500.0,0.0002,2]
[323334243,1713903058375,-500.0,0.0002,2]
[323334244,1713903058385,-2317.22,0.0002,2]
[323334245,1713903058394,-2095.97,0.0002,2]
[323334246,1713903058403,-500.0,0.0002,2]
[323334247,1713903058412,-500.0,0.0002,2]
[323334248,1713903058422,-920.17,0.0002,2]
[323334249,1713903058431,-603.15,0.0002,2]
[323334250,1713903058440,-500.0,0.0002,2]
[323334251,1713903058450,-500.0,0.0002,2]
[323334252,1713903058459,-752.94,0.0002,2]
[323334253,1713903058469,-551.25531584,0.0002,2]
[323334254,1713903058478,-10680.25,0.0002,2]
[323334255,1713903058488,-151.0,0.0002,2]
[323334256,1713903058498,-151.0,0.0002,2]
[323334257,1713903058507,-151.0,0.0002,2]
[323334258,1713903058517,-500.0,0.0002,2]
[323334259,1713903058527,-151.0,0.0002,2]
[323334260,1713903058536,-1171.0,0.0002,2]
[323334261,1713903058546,-656.53,0.0002,2]
[323334262,1713903058555,-1233.2,0.0002,2]
[323334263,1713903058565,-734.96,0.0002,2]
[323334264,1713903058574,-500.0,0.0002,2]
[323334265,1713903058583,-720.3,0.0002,2]
[323334266,1713903058593,-361.08025354,0.0002,2]
[323334267,1713903058603,-500.0,0.0002,2]
[323334268,1713903058612,-500.0,0.0002,2]
[323334269,1713903058622,-500.0,0.0002,2]
[323334270,1713903058631,-3840.5,0.0002,2]
[323334271,1713903058641,-500.0,0.0002,2]
[323334272,1713903058650,-568.42,0.0002,2]
[323334273,1713903058659,-180.27133171,0.0002,2]
[323334274,1713903058669,-7817.81,0.0002,2]
[323334275,1713903058678,-493.0,0.0002,2]
[323334276,1713903058687,-500.0,0.0002,2]
[323334277,1713903058697,-500.0,0.0002,2]
[323334278,1713903058706,-3302.35,0.0002,2]
[323334279,1713903058716,-944.5,0.0002,2]
[323334280,1713903058725,-500.0,0.0002,2]
[323334281,1713903058734,-7165.39,0.0002,2]
[323334282,1713903058744,-500.0,0.0002,2]
[323334283,1713903058753,-500.0,0.0002,2]
[323334284,1713903058762,-4042.28,0.0002,2]
[323334285,1713903058771,-500.0,0.0002,2]
[323334286,1713903058781,-500.0,0.0002,2]
[323334287,1713903058790,-1454.5,0.0002,2]
[323334288,1713903058799,-5355.13,0.0002,2]
[323334289,1713903058808,-500.0,0.0002,2]
[323334290,1713903058818,-500.0,0.0002,2]
[323334291,1713903058827,-500.0,0.0002,2]
[323334292,1713903058836,-628.51,0.0002,2]
[323334293,1713903058846,-615.59,0.0002,2]
[323334294,1713903058856,-197.354673,0.0002,2]
[323334295,1713903058864,-197.354673,0.0002,2]
[323334296,1713903058873,-197.354673,0.0002,2]
[323334297,1713903058882,-197.354673,0.0002,2]
[323334298,1713903058892,-500.0,0.0002,2]
[323334299,1713903058901,-1677.46,0.0002,2]
[323334300,1713903058910,-197.354673,0.0002,2]
[323334301,1713903058920,-500.0,0.0002,2]
[323334302,1713903058929,-197.354673,0.0002,2]
[323334303,1713903058939,-500.0,0.0002,2]
[323334304,1713903058948,-197.354673,0.0002,2]
[323334305,1713903058957,-197.354671,0.0002,2]
[323334306,1713903058967,-1703.27,0.0002,2]
[323334307,1713903058978,-1449.82,0.0002,2]
[323334308,1713903058988,-970.060575,0.0002,2]
[323334309,1713903058998,-970.060575,0.0002,2]
[323334310,1713903059008,-970.060575,0.0002,2]
[323334311,1713903059017,-959.96,0.0002,2]
[323334312,1713903059028,-970.060575,0.0002,2]
[323334313,1713903059038,-500.0,0.0002,2]
[323334314,1713903059047,-584.38,0.0002,2]
[323334315,1713903059057,-579.91,0.0002,2]
[323334316,1713903059067,-970.060575,0.0002,2]
[323334317,1713903059077,-970.060575,0.0002,2]
[323334318,1713903059086,-970.060575,0.0002,2]
[323334319,1713903059096,-970.060575,0.0002,2]
[323334320,1713903059107,-939.14,0.0002,2]
[323334321,1713903059116,-500.0,0.0002,2]
[323334322,1713903059126,-200.0,0.0002,2]
[323334323,1713903059135,-500.0,0.0002,2]
[323334324,1713903059144,-500.0,0.0002,2]
[323334325,1713903059155,-500.0,0.0002,2]
[323334326,1713903059164,-188.680269,0.0002,2]
[323334327,1713903059174,-188.680269,0.0002,2]
[323334328,1713903059184,-188.680269,0.0002,2]
[323334329,1713903059193,-188.680269,0.0002,2]
[323334330,1713903059202,-188.680269,0.0002,2]
[323334331,1713903059212,-188.680269,0.0002,2]
[323334332,1713903059221,-188.680269,0.0002,2]
[323334333,1713903059230,-188.680274,0.0002,2]
[323334334,1713903059240,-2532.3,0.0002,2]
[323334335,1713903059249,-1075.84012,0.0002,2]
[323334336,1713903059259,-1075.84012,0.0002,2]
[323334337,1713903059268,-1075.84012,0.0002,2]
[323334338,1713903059278,-1075.84012,0.0002,2]
[323334339,1713903059287,-2619.5,0.0002,2]
[323334340,1713903059297,-1075.84012,0.0002,2]
[323334341,1713903059306,-151.0,0.0002,2]
[323334342,1713903059315,-1075.84012,0.0002,2]
[323334343,1713903059324,-151.0,0.0002,2]
[323334344,1713903059333,-151.0,0.0002,2]
[323334345,1713903059347,-1075.84012,0.0002,2]
[323334346,1713903059361,-1075.84011584,0.0002,2]
[323334347,1713903059375,-151.0,0.0002,2]
[323334348,1713903059387,-500.0,0.0002,2]
[323334349,1713903059402,-500.0,0.0002,2]
[323334350,1713903059416,-825.41,0.0002,2]
[323334351,1713903059430,-500.0,0.0002,2]
[323334352,1713903059442,-500.0,0.0002,2]
[323334353,1713903059454,-500.0,0.0002,2]
[323334354,1713903059468,-908.32,0.0002,2]
[323334355,1713903059481,-22773.5,0.0002,2]
[323334356,1713903059494,-500.0,0.0002,2]
[323334357,1713903059509,-1040.2,0.0002,2]
[323334358,1713903059522,-543.57,0.0002,2]
[323334359,1713903059535,-162.572148,0.0002,2]
[323334360,1713903059550,-162.572148,0.0002,2]
[323334361,1713903059564,-162.572148,0.0002,2]
[323334362,1713903059578,-2118.19,0.0002,2]
[323334363,1713903059590,-162.572148,0.0002,2]
[323334364,1713903059605,-688.87,0.0002,2]
[323334365,1713903059620,-151.0,0.0002,2]
[323334366,1713903059631,-170.161762,0.0002,2]
[323334367,1713903059643,-710.16,0.0002,2]
[323334368,1713903059655,-219.565655,0.0002,2]
[323334369,1713903059669,-7328.9,0.0002,2]
[323334370,1713903059681,-219.565655,0.0002,2]
[323334371,1713903059691,-219.565655,0.0002,2]
[323334372,1713903059702,-219.565655,0.0002,2]
[323334373,1713903059717,-219.565655,0.0002,2]
[323334374,1713903059727,-219.565655,0.0002,2]
[323334375,1713903059738,-1966.61,0.0002,2]
[323334376,1713903059750,-219.565655,0.0002,2]
[323334377,1713903059762,-219.565646,0.0002,2]
[323334378,1713903059774,-518.75316,0.0002,2]
[323334379,1713903059786,-518.75316,0.0002,2]
[323334380,1713903059798,-518.75316,0.0002,2]
[323334381,1713903059810,-518.75316,0.0002,2]
[323334382,1713903059822,-6812.28,0.0002,2]
[323334383,1713903059834,-522.87,0.0002,2]
[323334384,1713903059845,-518.75316,0.0002,2]
[323334385,1713903059859,-518.75316,0.0002,2]
[323334386,1713903059870,-500.0,0.0002,2]
[323334387,1713903059882,-304.14815888,0.0002,2]
[323334388,1713903059893,-518.75316,0.0002,2]
[323334389,1713903059904,-518.753166,0.0002,2]
[323334390,1713903059915,-500.0,0.0002,2]
[323334391,1713903059926,-11311.4,0.0002,2]
[323334392,1713903059936,-500.0,0.0002,2]
[323334393,1713903059947,-1756.23,0.0002,2]
[323334394,1713903059958,-646.457668,0.0002,2]
[323334395,1713903059969,-500.0,0.0002,2]
[323334396,1713903059982,-646.457668,0.0002,2]
[323334397,1713903059993,-646.457668,0.0002,2]
[323334398,1713903060004,-646.457668,0.0002,2]
[323334399,1713903060015,-267.28861337,0.0002,2]
[323334400,1713903060027,-646.457668,0.0002,2]
[323334401,1713903060039,-646.457668,0.0002,2]
[323334402,1713903060051,-646.457668,0.0002,2]
[323334403,1713903060063,-646.45766,0.0002,2]
[323334404,1713903060075,-10737.74,0.0002,2]
[323334405,1713903060087,-500.0,0.0002,2]
[323334406,1713903060097,-197.859325,0.0002,2]
[323334407,1713903060108,-500.0,0.0002,2]
[323334408,1713903060119,-197.859325,0.0002,2]
[323334409,1713903060130,-197.859325,0.0002,2]
[323334410,1713903060141,-197.859325,0.0002,2]
[323334411,1713903060152,-197.859325,0.0002,2]
[323334412,1713903060164,-197.859325,0.0002,2]
[323334413,1713903060175,-197.859325,0.0002,2]
[323334414,1713903060186,-197.859333,0.0002,2]
[323334415,1713903060197,-1135.98,0.0002,2]
[323334416,1713903060208,-150.7314115,0.0002,2]
[323334417,1713903060219,-1936.76,0.0002,2]
[323334418,1713903060230,-500.0,0.0002,2]
[323334419,1713903060241,-868.15,0.0002,2]
[323334420,1713903060252,-500.0,0.0002,2]
[323334421,1713903060263,-7805.51,0.0002,2]
[323334422,1713903060274,-500.0,0.0002,2]
[323334423,1713903060286,-400.0,0.00020138,2]
[323334424,1713903060296,-2000.0,0.000202,2]
[323334425,1713903060307,-2000.0,0.000202,2]
[323334426,1713903060318,-1000.71106207,0.00020211,2]
[323334427,1713903060329,-184.125163,0.00020273,2]
[323334428,1713903060340,-184.125163,0.00020273,2]
[323334429,1713903060350,-151.0,0.00020273,2]
[323334430,1713903060362,-151.0,0.00020273,2]
[323334431,1713903060373,-210.80801574,0.00020273,2]
[323334432,1713903060383,-627.95456207,0.00020273,2]
[323334433,1713903060394,-984.57,0.00020273,2]
[323334434,1713903060404,-572.31,0.00020273,2]
[323334435,1713903060415,-697.84,0.00020273,2]
[323334436,1713903060428,-615.15,0.00020273,2]
[323334437,1713903060438,-452.62828504,0.00020273,2]
[323334438,1713903060449,-500.0,0.00020273,2]
[323334439,1713903060459,-500.0,0.00020273,2]
[323334440,1713903060470,-1887.52,0.00020273,2]
[323334441,1713903060482,-517.12,0.00020273,2]
[323334442,1713903060492,-625.12,0.00020273,2]
[323334443,1713903060503,-500.0,0.00020273,2]
[323334444,1713903060515,-500.0,0.00020273,2]
[323334445,1713903060526,-500.0,0.00020273,2]
[323334446,1713903060538,-500.0,0.00020273,2]
[323334447,1713903060549,-506.18473321,0.00020273,2]
[323334448,1713903060560,-1091.25,0.00020273,2]
[323334449,1713903060571,-500.0,0.00020273,2]
[323334450,1713903060582,-153.472085,0.00020273,2]
[323334451,1713903060594,-500.0,0.00020273,2]
[323334452,1713903060606,-500.0,0.00020273,2]
[323334453,1713903060618,-551.38,0.00020273,2]
[323334454,1713903060629,-500.0,0.00020273,2]
[323334455,1713903060640,-576.81,0.00020273,2]
[323334456,1713903060833,-500.0,0.00020273,2]
[323334457,1713903060849,-500.0,0.00020273,2]
[323334458,1713903060860,-493.93279549,0.00020273,2]
[323334459,1713903060869,-526.38,0.00020273,2]
[323334460,1713903060878,-500.0,0.00020273,2]
[323334461,1713903060888,-500.0,0.00020273,2]
[323334462,1713903060897,-500.0,0.00020273,2]
[323334463,1713903060906,-618.49311596,0.00020273,2]
[323334464,1713903060915,-151.0,0.00020273,2]
[323334465,1713903060925,-500.0,0.00020273,2]
[323334466,1713903060935,-823.300687,0.00020273,2]
[323334467,1713903060944,-823.300687,0.00020273,2]
[323334468,1713903060953,-500.0,0.00020273,2]
[323334469,1713903060962,-500.0,0.00020273,2]
[323334470,1713903060972,-255.710454,0.00020273,2]
[323334471,1713903060983,-823.300687,0.00020273,2]
[323334472,1713903060992,-823.300687,0.00020273,2]
[323334473,1713903061001,-500.0,0.00020273,2]
[323334474,1713903061010,-500.0,0.00020273,2]
[323334475,1713903061020,-500.0,0.00020273,2]
[323334476,1713903061030,-616.09003582,0.00020273,2]
[323334477,1713903061039,-2218.9,0.00020273,2]
[323334478,1713903061048,-500.0,0.00020273,2]
[323334479,1713903061058,-151.0,0.00020273,2]
[323334480,1713903061067,-151.0,0.00020273,2]
[323334481,1713903061076,-500.0,0.00020273,2]
[323334482,1713903061084,-635.33,0.00020273,2]
[323334483,1713903061094,-500.0,0.00020273,2]
[323334484,1713903061103,-1536.78,0.00020273,2]
[323334485,1713903061115,-500.0,0.00020273,2]
[323334486,1713903061125,-1128.31,0.00020273,2]
[323334487,1713903061134,-500.0,0.00020273,2]
[323334488,1713903061144,-500.0,0.00020273,2]
[323334489,1713903061153,-1230.65,0.00020273,2]
[323334490,1713903061162,-908.18,0.00020273,2]
[323334491,1713903061172,-501.693123,0.00020273,2]
[323334492,1713903061181,-501.693123,0.00020273,2]
[323334493,1713903061190,-500.0,0.00020273,2]
[323334494,1713903061198,-500.0,0.00020273,2]
[323334495,1713903061207,-501.693123,0.00020273,2]
[323334496,1713903061217,-501.693128,0.00020273,2]
[323334497,1713903061226,-151.0,0.00020273,2]
[323334498,1713903061235,-151.0,0.00020273,2]
[323334499,1713903061244,-500.0,0.00020273,2]
[323334500,1713903061253,-898.37,0.00020273,2]
[323334501,1713903061262,-1102.27,0.00020273,2]
[323334502,1713903061271,-1046.8,0.00020273,2]
[323334503,1713903061280,-500.0,0.00020273,2]
[323334504,1713903061289,-206.6927002,0.00020273,2]
[323334505,1713903061299,-500.0,0.00020273,2]
[323334506,1713903061307,-500.0,0.00020273,2]
[323334507,1713903061316,-1358.76,0.00020273,2]
[323334508,1713903061325,-928.75,0.00020273,2]
[323334509,1713903061334,-500.0,0.00020273,2]
[323334510,1713903061343,-500.0,0.00020273,2]
[323334511,1713903061352,-500.0,0.00020273,2]
[323334512,1713903061363,-500.0,0.00020273,2]
[323334513,1713903061372,-670.19,0.00020273,2]
[323334514,1713903061381,-500.0,0.00020273,2]
[323334515,1713903061391,-500.0,0.00020273,2]
[323334516,1713903061401,-1046.91,0.00020273,2]
[323334517,1713903061410,-561.05,0.00020273,2]
[323334518,1713903061420,-454.41937308,0.00020273,2]
[323334519,1713903061429,-500.0,0.00020273,2]
[323334520,1713903061438,-500.0,0.00020273,2]
[323334521,1713903061448,-500.0,0.00020273,2]
[323334522,1713903061457,-222.48413619,0.00020273,2]
[323334523,1713903061467,-779.92,0.00020273,2]
[323334524,1713903061476,-1609.44,0.00020273,2]
[323334525,1713903061486,-872.16,0.00020273,2]
[323334526,1713903061495,-500.0,0.00020273,2]
[323334527,1713903061505,-500.0,0.00020273,2]
[323334528,1713903061514,-551.7,0.00020273,2]
[323334529,1713903061523,-500.0,0.00020273,2]
[323334530,1713903061532,-500.0,0.00020273,2]
[323334531,1713903061542,-500.0,0.00020273,2]
[323334532,1713903061551,-500.0,0.00020273,2]
[323334533,1713903061560,-500.0,0.00020273,2]
[323334534,1713903061569,-500.0,0.00020273,2]
[323334535,1713903061578,-602.35,0.00020273,2]
[323334536,1713903061587,-960.05,0.00020273,2]
[323334537,1713903061596,-500.0,0.00020273,2]
[323334538,1713903061605,-3306.34,0.00020273,2]
[323334539,1713903061616,-500.0,0.00020273,2]
[323334540,1713903061625,-500.0,0.00020273,2]
[323334541,1713903061634,-500.0,0.00020273,2]
[323334542,1713903061644,-787.01825,0.00020273,2]
[323334543,1713903061654,-500.0,0.00020273,2]
[323334544,1713903061664,-770.49,0.00020273,2]
[323334545,1713903061673,-1506.91,0.00020273,2]
[323334546,1713903061681,-864.47,0.00020273,2]
[323334547,1713903061690,-1108.17,0.00020273,2]
[323334548,1713903061699,-500.0,0.00020273,2]
[323334549,1713903061708,-2412.6,0.00020273,2]
[323334550,1713903061718,-500.0,0.00020273,2]
[323334551,1713903061727,-1562.28,0.00020273,2]
[323334552,1713903061736,-578.18,0.00020273,2]
[323334553,1713903061745,-192.747871,0.00020273,2]
[323334554,1713903061754,-192.747866,0.00020273,2]
[323334555,1713903061764,-588.86117877,0.00020273,2]
[323334556,1713903061773,-500.0,0.00020273,2]
[323334557,1713903061783,-500.0,0.00020273,2]
[323334558,1713903061792,-982.81,0.00020273,2]
[323334559,1713903061801,-735.84,0.00020273,2]
[323334560,1713903061810,-2227.36,0.00020273,2]
[323334561,1713903061820,-1054.07,0.00020273,2]
[323334562,1713903061829,-1835.9,0.00020273,2]
[323334563,1713903061838,-1881.45,0.00020273,2]
[323334564,1713903061848,-727.37,0.00020273,2]
[323334565,1713903061865,-500.0,0.00020273,2]
[323334566,1713903061892,-500.0,0.00020273,2]
[323334567,1713903061920,-500.0,0.00020273,2]
[323334568,1713903061943,-500.0,0.00020273,2]
[323334569,1713903061970,-500.0,0.00020273,2]
[323334570,1713903061995,-500.0,0.00020273,2]
[323334571,1713903062027,-579.55,0.00020273,2]
[323334572,1713903062051,-1701.25,0.00020273,2]
[323334573,1713903062061,-1322.53,0.00020273,2]
[323334574,1713903062070,-992.14,0.00020273,2]
[323334575,1713903062079,-500.0,0.00020273,2]
[323334576,1713903062089,-500.0,0.00020273,2]
[323334577,1713903062098,-500.0,0.00020273,2]
[323334578,1713903062109,-871.49,0.00020273,2]
[323334579,1713903062118,-500.0,0.00020273,2]
[323334580,1713903062127,-500.0,0.00020273,2]
[323334581,1713903062137,-500.0,0.00020273,2]
[323334582,1713903062146,-282.712188,0.00020273,2]
[323334583,1713903062155,-500.0,0.00020273,2]
[323334584,1713903062164,-282.71219,0.00020273,2]
[323334585,1713903062173,-728.0,0.00020273,2]